[Event "January 2 Late 2024"]
[Site "https://www.chess.com"]
[Date "2024.01.02"]
[Round "3"]
[White "Lymar, Vladislav"]
[Black "Wendt, Jan-Dietrich"]
[Result "1-0"]
[Board "142"]
[TimeControl "180+1"]
[WhiteFideId "14162180"]
[BlackFideId "4623797"]
[WhiteElo "2561"]
[BlackElo "2337"]
[WhiteTeam "UKR"]
[BlackTeam "GER"]
[WhiteClock "0:00:13"]
[BlackClock "0:00:00"]

1. f4 {[%clk 0:03:00]}  d5 {[%clk 0:02:58]} 2. Nf3 {[%clk 0:03:00]}  Bg4 {[%clk 0:02:58]} 3. Ne5 {[%clk 0:02:59]}  Bf5 {[%clk 0:02:58]} 4. d3 {[%clk 0:02:57]}  Nd7 {[%clk 0:02:57]} 5. g3 {[%clk 0:02:54]}  Nxe5 {[%clk 0:02:56]} 6. fxe5 {[%clk 0:02:55]}  e6 {[%clk 0:02:52]} 7. Bg2 {[%clk 0:02:54]}  Ne7 {[%clk 0:02:49]} 8. O-O {[%clk 0:02:51]}  c5 {[%clk 0:02:48]} 9. c4 {[%clk 0:02:46]}  Bg6 {[%clk 0:02:42]} 10. Nc3 {[%clk 0:02:40]}  d4 {[%clk 0:02:28]} 11. Qa4+ {[%clk 0:02:39]}  Qd7 {[%clk 0:02:24]} 12. Nb5 {[%clk 0:02:40]}  Nc6 {[%clk 0:02:24]} 13. Bf4 {[%clk 0:02:12]}  Be7 {[%clk 0:02:14]} 14. Qa3 {[%clk 0:01:37]}  O-O {[%clk 0:02:05]} 15. Nd6 {[%clk 0:01:37]}  b6 {[%clk 0:01:57]} 16. Qa4 {[%clk 0:01:28]}  Rac8 {[%clk 0:01:57]} 17. Nxc8 {[%clk 0:01:27]}  Rxc8 {[%clk 0:01:55]} 18. Qa6 {[%clk 0:01:17]}  h5 {[%clk 0:01:51]} 19. a3 {[%clk 0:01:12]}  Bf5 {[%clk 0:01:37]} 20. h4 {[%clk 0:01:11]}  Bg4 {[%clk 0:01:35]} 21. Bf3 {[%clk 0:01:09]}  Bxf3 {[%clk 0:01:33]} 22. exf3 {[%clk 0:01:10]}  f6 {[%clk 0:01:17]} 23. Rae1 {[%clk 0:00:57]}  g5 {[%clk 0:01:08]} 24. exf6 {[%clk 0:00:51]}  gxf4 {[%clk 0:01:08]} 25. fxe7 {[%clk 0:00:52]}  Nxe7 {[%clk 0:01:02]} 26. Re4 {[%clk 0:00:42]}  fxg3 {[%clk 0:00:58]} 27. Rfe1 {[%clk 0:00:36]}  Rc6 {[%clk 0:00:53]} 28. Qa4 {[%clk 0:00:35]}  Nf5 {[%clk 0:00:27]} 29. Re5 {[%clk 0:00:16]}  Qd6 {[%clk 0:00:15]} 30. R1e4 {[%clk 0:00:12]}  Kf7 {[%clk 0:00:03]} 31. Qxa7+ {[%clk 0:00:12]}  Rc7 {[%clk 0:00:00]} 32. Qb8 {[%clk 0:00:13]} 1-0

[Event "January 2 Late 2024"]
[Site "https://www.chess.com"]
[Date "2024.01.02"]
[Round "3"]
[White "Kujawski, Adam"]
[Black "Kotlyar, Kirill"]
[Result "0-1"]
[Board "144"]
[TimeControl "180+1"]
[WhiteFideId "1100920"]
[BlackFideId "24145599"]
[WhiteElo "2327"]
[BlackElo "2554"]
[WhiteTeam "POL"]
[BlackTeam "RUS"]
[WhiteClock "0:00:00"]
[BlackClock "0:00:10"]

1. e4 {[%clk 0:03:00]}  e5 {[%clk 0:02:57]} 2. Nf3 {[%clk 0:03:00]}  Nc6 {[%clk 0:02:50]} 3. Bb5 {[%clk 0:03:00]}  a6 {[%clk 0:02:50]} 4. Ba4 {[%clk 0:03:00]}  Nf6 {[%clk 0:02:49]} 5. O-O {[%clk 0:03:00]}  Be7 {[%clk 0:02:49]} 6. Re1 {[%clk 0:03:00]}  b5 {[%clk 0:02:50]} 7. Bb3 {[%clk 0:03:00]}  O-O {[%clk 0:02:50]} 8. h3 {[%clk 0:03:01]}  d6 {[%clk 0:02:50]} 9. c3 {[%clk 0:03:00]}  Nb8 {[%clk 0:02:50]} 10. d4 {[%clk 0:03:00]}  Nbd7 {[%clk 0:02:51]} 11. Nbd2 {[%clk 0:02:59]}  Bb7 {[%clk 0:02:52]} 12. Bc2 {[%clk 0:02:57]}  c5 {[%clk 0:02:52]} 13. d5 {[%clk 0:02:54]}  c4 {[%clk 0:02:52]} 14. a4 {[%clk 0:02:47]}  Nc5 {[%clk 0:02:51]} 15. a5 {[%clk 0:02:23]}  Re8 {[%clk 0:02:45]} 16. b4 {[%clk 0:02:21]}  cxb3 {[%clk 0:02:40]} 17. Nxb3 {[%clk 0:02:21]}  Nxb3 {[%clk 0:02:40]} 18. Bxb3 {[%clk 0:02:21]}  Rc8 {[%clk 0:02:41]} 19. Bd2 {[%clk 0:02:06]}  h6 {[%clk 0:02:32]} 20. Qe2 {[%clk 0:02:06]}  Qc7 {[%clk 0:02:27]} 21. Rec1 {[%clk 0:02:04]}  Qd7 {[%clk 0:02:06]} 22. c4 {[%clk 0:02:02]}  bxc4 {[%clk 0:01:57]} 23. Bxc4 {[%clk 0:01:58]}  Rc7 {[%clk 0:01:42]} 24. Be3 {[%clk 0:01:39]}  Rcc8 {[%clk 0:01:03]} 25. Nd2 {[%clk 0:01:31]}  Bd8 {[%clk 0:00:51]} 26. Bb6 {[%clk 0:01:04]}  Ra8 {[%clk 0:00:27]} 27. Rab1 {[%clk 0:01:02]}  Be7 {[%clk 0:00:21]} 28. Bd3 {[%clk 0:01:00]}  Rec8 {[%clk 0:00:20]} 29. Rxc8+ {[%clk 0:00:59]}  Bxc8 {[%clk 0:00:18]} 30. Rc1 {[%clk 0:00:58]}  Ne8 {[%clk 0:00:18]} 31. Nc4 {[%clk 0:00:45]}  Bb7 {[%clk 0:00:18]} 32. Qb2 {[%clk 0:00:39]}  Rc8 {[%clk 0:00:17]} 33. Bf1 {[%clk 0:00:38]}  f5 {[%clk 0:00:16]} 34. exf5 {[%clk 0:00:27]}  Bxd5 {[%clk 0:00:16]} 35. Ne3 {[%clk 0:00:24]}  Bb7 {[%clk 0:00:15]} 36. Rxc8 {[%clk 0:00:19]}  Qxc8 {[%clk 0:00:15]} 37. Bc4+ {[%clk 0:00:19]}  Kh8 {[%clk 0:00:15]} 38. Be6 {[%clk 0:00:19]}  Qc6 {[%clk 0:00:08]} 39. Kh2 {[%clk 0:00:18]}  Bg5 {[%clk 0:00:09]} 40. Bd5 {[%clk 0:00:18]}  Qc8 {[%clk 0:00:08]} 41. Bxb7 {[%clk 0:00:18]}  Qxb7 {[%clk 0:00:09]} 42. Qc2 {[%clk 0:00:17]}  Bf4+ {[%clk 0:00:08]} 43. g3 {[%clk 0:00:16]}  Bxe3 {[%clk 0:00:08]} 44. Bxe3 {[%clk 0:00:17]}  d5 {[%clk 0:00:08]} 45. Qc5 {[%clk 0:00:17]}  d4 {[%clk 0:00:08]} 46. Qf8+ {[%clk 0:00:16]}  Kh7 {[%clk 0:00:08]} 47. Qxe8 {[%clk 0:00:12]}  dxe3 {[%clk 0:00:09]} 48. Qg6+ {[%clk 0:00:09]}  Kh8 {[%clk 0:00:08]} 49. Qe8+ {[%clk 0:00:08]}  Kh7 {[%clk 0:00:08]} 50. fxe3 {[%clk 0:00:07]}  Qb2+ {[%clk 0:00:07]} 51. Kg1 {[%clk 0:00:07]}  Qc1+ {[%clk 0:00:07]} 52. Kf2 {[%clk 0:00:07]}  Qd2+ {[%clk 0:00:08]} 53. Kf3 {[%clk 0:00:08]}  Qd5+ {[%clk 0:00:08]} 54. Ke2 {[%clk 0:00:04]}  Qc4+ {[%clk 0:00:08]} 55. Kf2 {[%clk 0:00:03]}  Qc2+ {[%clk 0:00:08]} 56. Kf3 {[%clk 0:00:03]}  Qxf5+ {[%clk 0:00:08]} 57. Kg2 {[%clk 0:00:02]}  Qe4+ {[%clk 0:00:08]} 58. Kh2 {[%clk 0:00:02]}  Qc2+ {[%clk 0:00:09]} 59. Kg1 {[%clk 0:00:00]}  Qd1+ {[%clk 0:00:10]} 0-1

[Event "January 2 Late 2024"]
[Site "https://www.chess.com"]
[Date "2024.01.02"]
[Round "3"]
[White "Rama, Tejas"]
[Black "Silvestre, Christian"]
[Result "1-0"]
[Board "145"]
[TimeControl "180+1"]
[WhiteFideId "30907381"]
[BlackFideId "30956269"]
[WhiteElo "2548"]
[BlackElo "2324"]
[WhiteTeam "USA"]
[BlackTeam "USA"]
[WhiteClock "0:00:42"]
[BlackClock "0:00:04"]

1. d4 {[%clk 0:03:00]}  Nf6 {[%clk 0:02:57]} 2. c4 {[%clk 0:03:01]}  d6 {[%clk 0:02:55]} 3. Nf3 {[%clk 0:03:00]}  g6 {[%clk 0:02:54]} 4. Nc3 {[%clk 0:02:58]}  Bg7 {[%clk 0:02:55]} 5. e4 {[%clk 0:02:58]}  O-O {[%clk 0:02:55]} 6. Be2 {[%clk 0:02:58]}  e5 {[%clk 0:02:55]} 7. Be3 {[%clk 0:02:56]}  Nc6 {[%clk 0:02:55]} 8. d5 {[%clk 0:02:54]}  Ne7 {[%clk 0:02:54]} 9. Nd2 {[%clk 0:02:50]}  h5 {[%clk 0:02:25]} 10. h3 {[%clk 0:02:42]}  Nh7 {[%clk 0:02:10]} 11. b4 {[%clk 0:02:30]}  f5 {[%clk 0:02:08]} 12. f3 {[%clk 0:02:20]}  f4 {[%clk 0:01:40]} 13. Bf2 {[%clk 0:02:20]}  Bf6 {[%clk 0:01:34]} 14. c5 {[%clk 0:02:10]}  Rf7 {[%clk 0:01:32]} 15. Nc4 {[%clk 0:02:09]}  Kh8 {[%clk 0:01:26]} 16. a4 {[%clk 0:02:09]}  Ng8 {[%clk 0:01:25]} 17. h4 {[%clk 0:02:09]}  Rg7 {[%clk 0:01:06]} 18. a5 {[%clk 0:02:07]}  a6 {[%clk 0:00:54]} 19. cxd6 {[%clk 0:02:06]}  cxd6 {[%clk 0:00:53]} 20. Qb3 {[%clk 0:01:55]}  g5 {[%clk 0:00:40]} 21. hxg5 {[%clk 0:01:51]}  Rxg5 {[%clk 0:00:41]} 22. Rh2 {[%clk 0:01:47]}  Be7 {[%clk 0:00:33]} 23. b5 {[%clk 0:01:38]}  Ngf6 {[%clk 0:00:29]} 24. Nb6 {[%clk 0:01:30]}  Rb8 {[%clk 0:00:27]} 25. Rc1 {[%clk 0:01:24]}  Rg8 {[%clk 0:00:20]} 26. Na2 {[%clk 0:01:21]}  Bd7 {[%clk 0:00:19]} 27. bxa6 {[%clk 0:01:20]}  bxa6 {[%clk 0:00:18]} 28. Nb4 {[%clk 0:01:20]}  Bb5 {[%clk 0:00:18]} 29. Bxb5 {[%clk 0:01:19]}  axb5 {[%clk 0:00:18]} 30. Nc6 {[%clk 0:01:20]}  Qc7 {[%clk 0:00:17]} 31. Qxb5 {[%clk 0:01:19]}  Rb7 {[%clk 0:00:17]} 32. Ra1 {[%clk 0:01:17]}  Nd7 {[%clk 0:00:13]} 33. Qa4 {[%clk 0:01:12]}  Nxb6 {[%clk 0:00:12]} 34. axb6 {[%clk 0:01:11]}  Rxb6 {[%clk 0:00:13]} 35. Nxe7 {[%clk 0:01:05]}  Rgb8 {[%clk 0:00:12]} 36. Bxb6 {[%clk 0:00:59]}  Qxb6 {[%clk 0:00:12]} 37. Kf1 {[%clk 0:00:50]}  Qe3 {[%clk 0:00:09]} 38. Rxh5 {[%clk 0:00:44]}  Rb2 {[%clk 0:00:07]} 39. Qe8+ {[%clk 0:00:43]}  Kg7 {[%clk 0:00:06]} 40. Rxh7+ {[%clk 0:00:42]}  Kxh7 {[%clk 0:00:04]} 41. Qg6+ {[%clk 0:00:42]}  Kh8 {[%clk 0:00:04]} 42. Qg8# {[%clk 0:00:42]} 1-0

[Event "January 2 Late 2024"]
[Site "https://www.chess.com"]
[Date "2024.01.02"]
[Round "3"]
[White "Mazi, Leon"]
[Black "Zampronha, Wladimir Camilo"]
[Result "0-1"]
[Board "146"]
[TimeControl "180+1"]
[WhiteFideId "14600315"]
[BlackFideId "2103087"]
[WhiteElo "2544"]
[BlackElo "2315"]
[WhiteTeam "SLO"]
[BlackTeam "BRA"]
[WhiteClock "0:01:20"]
[BlackClock "0:01:32"]

1. e4 {[%clk 0:03:00]}  c5 {[%clk 0:02:59]} 2. Nf3 {[%clk 0:02:59]}  e6 {[%clk 0:03:00]} 3. d4 {[%clk 0:02:58]}  cxd4 {[%clk 0:03:00]} 4. Nxd4 {[%clk 0:02:58]}  Nc6 {[%clk 0:03:01]} 5. Nc3 {[%clk 0:02:56]}  Qc7 {[%clk 0:03:01]} 6. f4 {[%clk 0:02:55]}  a6 {[%clk 0:02:59]} 7. Nf3 {[%clk 0:02:54]}  b5 {[%clk 0:02:59]} 8. Bd3 {[%clk 0:02:50]}  Bb7 {[%clk 0:02:59]} 9. O-O {[%clk 0:02:47]}  Nf6 {[%clk 0:02:56]} 10. Qe1 {[%clk 0:02:47]}  h5 {[%clk 0:02:49]} 11. h3 {[%clk 0:02:45]}  b4 {[%clk 0:02:32]} 12. Nd1 {[%clk 0:02:40]}  d5 {[%clk 0:02:28]} 13. e5 {[%clk 0:02:27]}  Nd7 {[%clk 0:02:23]} 14. f5 {[%clk 0:02:15]}  Ncxe5 {[%clk 0:02:21]} 15. Nxe5 {[%clk 0:02:10]}  Nxe5 {[%clk 0:02:18]} 16. fxe6 {[%clk 0:02:10]}  fxe6 {[%clk 0:02:16]} 17. Bg6+ {[%clk 0:02:02]}  Nxg6 {[%clk 0:02:14]} 18. Qxe6+ {[%clk 0:02:01]}  Ne7 {[%clk 0:02:13]} 19. Qf7+ {[%clk 0:01:55]}  Kd7 {[%clk 0:02:09]} 20. Bf4 {[%clk 0:01:49]}  Qb6+ {[%clk 0:02:05]} 21. Be3 {[%clk 0:01:49]}  Qe6 {[%clk 0:01:59]} 22. Qf2 {[%clk 0:01:47]}  Rc8 {[%clk 0:01:45]} 23. c3 {[%clk 0:01:46]}  Nc6 {[%clk 0:01:38]} 24. a3 {[%clk 0:01:40]}  b3 {[%clk 0:01:37]} 25. c4 {[%clk 0:01:39]}  d4 {[%clk 0:01:35]} 26. Bf4 {[%clk 0:01:20]}  Bd6 {[%clk 0:01:32]} 0-1

[Event "January 2 Late 2024"]
[Site "https://www.chess.com"]
[Date "2024.01.02"]
[Round "3"]
[White "Kekic, Armin"]
[Black "RaugintaBulba"]
[Result "1-0"]
[Board "148"]
[TimeControl "180+1"]
[WhiteFideId "14401274"]
[WhiteElo "2306"]
[BlackElo "2543"]
[WhiteTeam "BIH"]
[WhiteClock "0:00:12"]
[BlackClock "0:00:01"]

1. e4 {[%clk 0:03:00]}  c5 {[%clk 0:02:55]} 2. c3 {[%clk 0:03:01]}  a6 {[%clk 0:02:48]} 3. Nf3 {[%clk 0:03:00]}  d5 {[%clk 0:02:47]} 4. exd5 {[%clk 0:03:00]}  Qxd5 {[%clk 0:02:48]} 5. d4 {[%clk 0:03:00]}  Nf6 {[%clk 0:02:48]} 6. h3 {[%clk 0:02:56]}  Nc6 {[%clk 0:02:43]} 7. Be3 {[%clk 0:02:56]}  Nxd4 {[%clk 0:02:43]} 8. cxd4 {[%clk 0:02:54]}  cxd4 {[%clk 0:02:17]} 9. Qxd4 {[%clk 0:02:50]}  Qa5+ {[%clk 0:02:12]} 10. Nc3 {[%clk 0:02:50]}  e6 {[%clk 0:02:09]} 11. Qb6 {[%clk 0:02:47]}  Qh5 {[%clk 0:02:05]} 12. Be2 {[%clk 0:02:44]}  Be7 {[%clk 0:01:59]} 13. O-O-O {[%clk 0:02:23]}  O-O {[%clk 0:01:55]} 14. Ng5 {[%clk 0:02:21]}  Qh4 {[%clk 0:01:47]} 15. Qd4 {[%clk 0:02:16]}  Qxd4 {[%clk 0:01:41]} 16. Bxd4 {[%clk 0:02:16]}  b5 {[%clk 0:01:38]} 17. Bf3 {[%clk 0:02:14]}  Rb8 {[%clk 0:01:37]} 18. Ba7 {[%clk 0:02:11]}  Rb7 {[%clk 0:01:37]} 19. Bxb7 {[%clk 0:02:10]}  Bxb7 {[%clk 0:01:38]} 20. f3 {[%clk 0:02:01]}  b4 {[%clk 0:01:36]} 21. Nce4 {[%clk 0:02:01]}  Rc8+ {[%clk 0:01:33]} 22. Kb1 {[%clk 0:02:00]}  Nd5 {[%clk 0:01:31]} 23. h4 {[%clk 0:01:57]}  h6 {[%clk 0:01:28]} 24. Nh3 {[%clk 0:01:56]}  f5 {[%clk 0:01:27]} 25. Nef2 {[%clk 0:01:49]}  Bxh4 {[%clk 0:01:26]} 26. Rc1 {[%clk 0:01:45]}  Re8 {[%clk 0:01:16]} 27. Rhe1 {[%clk 0:01:40]}  e5 {[%clk 0:01:12]} 28. Re2 {[%clk 0:01:34]}  e4 {[%clk 0:01:10]} 29. fxe4 {[%clk 0:01:27]}  fxe4 {[%clk 0:01:11]} 30. Rxe4 {[%clk 0:01:23]}  Nc3+ {[%clk 0:01:09]} 31. bxc3 {[%clk 0:01:23]}  Bxe4+ {[%clk 0:01:06]} 32. Nxe4 {[%clk 0:01:22]}  Rxe4 {[%clk 0:01:07]} 33. c4 {[%clk 0:01:19]}  Bf6 {[%clk 0:01:01]} 34. Rf1 {[%clk 0:00:53]}  Rxc4 {[%clk 0:00:57]} 35. Nf4 {[%clk 0:00:46]}  Rc7 {[%clk 0:00:56]} 36. Bb6 {[%clk 0:00:42]}  Rd7 {[%clk 0:00:52]} 37. Kc2 {[%clk 0:00:39]}  a5 {[%clk 0:00:49]} 38. Rf2 {[%clk 0:00:31]}  a4 {[%clk 0:00:49]} 39. Ba5 {[%clk 0:00:24]}  Rb7 {[%clk 0:00:44]} 40. Nd5 {[%clk 0:00:23]}  b3+ {[%clk 0:00:44]} 41. axb3 {[%clk 0:00:23]}  axb3+ {[%clk 0:00:45]} 42. Kb1 {[%clk 0:00:24]}  Bd4 {[%clk 0:00:42]} 43. Rd2 {[%clk 0:00:22]}  Be5 {[%clk 0:00:41]} 44. Bc3 {[%clk 0:00:21]}  Bxc3 {[%clk 0:00:35]} 45. Nxc3 {[%clk 0:00:22]}  h5 {[%clk 0:00:35]} 46. Kb2 {[%clk 0:00:22]}  g5 {[%clk 0:00:34]} 47. Ne4 {[%clk 0:00:22]}  g4 {[%clk 0:00:34]} 48. Nf6+ {[%clk 0:00:22]}  Kg7 {[%clk 0:00:33]} 49. Nxh5+ {[%clk 0:00:22]}  Kg6 {[%clk 0:00:34]} 50. Nf4+ {[%clk 0:00:21]}  Kf5 {[%clk 0:00:34]} 51. g3 {[%clk 0:00:21]}  Rb4 {[%clk 0:00:26]} 52. Nd3 {[%clk 0:00:18]}  Rb7 {[%clk 0:00:22]} 53. Re2 {[%clk 0:00:18]}  Rd7 {[%clk 0:00:19]} 54. Kc3 {[%clk 0:00:18]}  b2 {[%clk 0:00:12]} 55. Nxb2 {[%clk 0:00:16]}  Ra7 {[%clk 0:00:08]} 56. Nc4 {[%clk 0:00:14]}  Ra1 {[%clk 0:00:07]} 57. Re3 {[%clk 0:00:14]}  Rf1 {[%clk 0:00:04]} 58. Kd3 {[%clk 0:00:13]}  Rd1+ {[%clk 0:00:03]} 59. Ke2 {[%clk 0:00:13]}  Rc1 {[%clk 0:00:03]} 60. Nd6+ {[%clk 0:00:13]}  Kf6 {[%clk 0:00:04]} 61. Ne4+ {[%clk 0:00:13]}  Kf5 {[%clk 0:00:05]} 62. Nf2 {[%clk 0:00:12]}  Rc2+ {[%clk 0:00:05]} 63. Kf1 {[%clk 0:00:13]}  Rc1+ {[%clk 0:00:05]} 64. Kg2 {[%clk 0:00:13]}  Rc2 {[%clk 0:00:05]} 65. Re8 {[%clk 0:00:13]}  Ra2 {[%clk 0:00:05]} 66. Rf8+ {[%clk 0:00:13]}  Ke5 {[%clk 0:00:03]} 67. Rf4 {[%clk 0:00:12]}  Rb2 {[%clk 0:00:01]} 68. Rxg4 {[%clk 0:00:13]}  Kf5 {[%clk 0:00:02]} 69. Rf4+ {[%clk 0:00:13]}  Kg5 {[%clk 0:00:03]} 70. Kh3 {[%clk 0:00:12]}  Kh5 {[%clk 0:00:03]} 71. Ne4 {[%clk 0:00:12]}  Rb1 {[%clk 0:00:03]} 72. Nf6+ {[%clk 0:00:12]}  Kg5 {[%clk 0:00:03]} 73. Ng4 {[%clk 0:00:13]}  Rh1+ {[%clk 0:00:03]} 74. Nh2 {[%clk 0:00:13]}  Ra1 {[%clk 0:00:04]} 75. Rb4 {[%clk 0:00:13]}  Kh5 {[%clk 0:00:03]} 76. Rb5+ {[%clk 0:00:13]}  Kg6 {[%clk 0:00:04]} 77. Kh4 {[%clk 0:00:13]}  Rh1 {[%clk 0:00:04]} 78. Kh3 {[%clk 0:00:14]}  Ra1 {[%clk 0:00:04]} 79. g4 {[%clk 0:00:14]}  Rh1 {[%clk 0:00:03]} 80. Kg3 {[%clk 0:00:14]}  Rg1+ {[%clk 0:00:04]} 81. Kf4 {[%clk 0:00:13]}  Rf1+ {[%clk 0:00:04]} 82. Nf3 {[%clk 0:00:14]}  Ra1 {[%clk 0:00:04]} 83. Rb6+ {[%clk 0:00:14]}  Kf7 {[%clk 0:00:04]} 84. Kf5 {[%clk 0:00:14]}  Ra4 {[%clk 0:00:05]} 85. Ne5+ {[%clk 0:00:14]}  Ke7 {[%clk 0:00:05]} 86. Rb7+ {[%clk 0:00:14]}  Kf8 {[%clk 0:00:04]} 87. g5 {[%clk 0:00:14]}  Kg8 {[%clk 0:00:04]} 88. Kg6 {[%clk 0:00:14]}  Ra6+ {[%clk 0:00:03]} 89. Kh5 {[%clk 0:00:13]}  Re6 {[%clk 0:00:02]} 90. Ng4 {[%clk 0:00:13]}  Re1 {[%clk 0:00:02]} 91. g6 {[%clk 0:00:12]}  Rh1+ {[%clk 0:00:01]} 92. Kg5 {[%clk 0:00:13]}  Rf1 {[%clk 0:00:01]} 93. Nf6+ {[%clk 0:00:12]}  Kf8 {[%clk 0:00:01]} 94. Rf7# {[%clk 0:00:12]} 1-0

[Event "January 2 Late 2024"]
[Site "https://www.chess.com"]
[Date "2024.01.02"]
[Round "3"]
[White "Coelho, Ramyres Santana"]
[Black "Asish Panda"]
[Result "0-1"]
[Board "151"]
[TimeControl "180+1"]
[WhiteFideId "2120690"]
[BlackFideId "45012458"]
[WhiteElo "2298"]
[BlackElo "2536"]
[WhiteTeam "BRA"]
[BlackTeam "IND"]
[WhiteClock "0:01:04"]
[BlackClock "0:01:55"]

1. e4 {[%clk 0:03:00]}  e6 {[%clk 0:02:58]} 2. d4 {[%clk 0:03:00]}  d5 {[%clk 0:02:56]} 3. Nc3 {[%clk 0:02:59]}  Nf6 {[%clk 0:02:56]} 4. e5 {[%clk 0:02:59]}  Nfd7 {[%clk 0:02:56]} 5. f4 {[%clk 0:02:59]}  c5 {[%clk 0:02:55]} 6. Nf3 {[%clk 0:03:00]}  Nc6 {[%clk 0:02:55]} 7. Be3 {[%clk 0:03:00]}  Be7 {[%clk 0:02:55]} 8. Qd2 {[%clk 0:02:56]}  a6 {[%clk 0:02:52]} 9. O-O-O {[%clk 0:02:53]}  c4 {[%clk 0:02:52]} 10. g4 {[%clk 0:02:49]}  b5 {[%clk 0:02:50]} 11. a3 {[%clk 0:02:46]}  Qa5 {[%clk 0:02:47]} 12. Nb1 {[%clk 0:02:35]}  b4 {[%clk 0:02:45]} 13. axb4 {[%clk 0:02:33]}  Nxb4 {[%clk 0:02:41]} 14. Re1 {[%clk 0:02:30]}  Nb6 {[%clk 0:02:37]} 15. c3 {[%clk 0:02:25]}  Na2+ {[%clk 0:02:34]} 16. Kd1 {[%clk 0:02:24]}  Na4 {[%clk 0:02:35]} 17. Re2 {[%clk 0:02:03]}  Rb8 {[%clk 0:02:32]} 18. Qe1 {[%clk 0:02:01]}  Nxb2+ {[%clk 0:02:30]} 19. Kd2 {[%clk 0:01:49]}  Nd3 {[%clk 0:02:26]} 20. Qd1 {[%clk 0:01:41]}  Rb2+ {[%clk 0:02:22]} 21. Qc2 {[%clk 0:01:41]}  Rxc2+ {[%clk 0:02:21]} 22. Kxc2 {[%clk 0:01:42]}  Bd7 {[%clk 0:02:20]} 23. Ne1 {[%clk 0:01:35]}  Qb5 {[%clk 0:02:15]} 24. Nxd3 {[%clk 0:01:14]}  cxd3+ {[%clk 0:02:15]} 25. Kd1 {[%clk 0:01:13]}  Qxb1+ {[%clk 0:02:15]} 26. Kd2 {[%clk 0:01:13]}  dxe2 {[%clk 0:02:13]} 27. Kxe2 {[%clk 0:01:12]}  Bb5+ {[%clk 0:02:12]} 28. Kf2 {[%clk 0:01:12]}  Bxf1 {[%clk 0:02:10]} 29. Rxf1 {[%clk 0:01:12]}  Qc2+ {[%clk 0:02:11]} 30. Kg3 {[%clk 0:01:12]}  Nxc3 {[%clk 0:02:11]} 31. Rf2 {[%clk 0:01:11]}  Ne4+ {[%clk 0:02:11]} 32. Kf3 {[%clk 0:01:11]}  Nxf2 {[%clk 0:02:12]} 33. Bxf2 {[%clk 0:01:12]}  a5 {[%clk 0:02:12]} 34. g5 {[%clk 0:01:13]}  a4 {[%clk 0:02:13]} 35. h4 {[%clk 0:01:13]}  g6 {[%clk 0:02:14]} 36. h5 {[%clk 0:01:13]}  gxh5 {[%clk 0:02:15]} 37. f5 {[%clk 0:01:13]}  exf5 {[%clk 0:02:15]} 38. g6 {[%clk 0:01:13]}  hxg6 {[%clk 0:02:16]} 39. e6 {[%clk 0:01:13]}  fxe6 {[%clk 0:02:17]} 40. Bh4 {[%clk 0:01:13]}  a3 {[%clk 0:02:15]} 41. Bxe7 {[%clk 0:01:12]}  a2 {[%clk 0:02:16]} 42. Bf6 {[%clk 0:01:10]}  Rg8 {[%clk 0:02:00]} 43. Kf4 {[%clk 0:01:09]}  Kf7 {[%clk 0:01:59]} 44. Ke5 {[%clk 0:01:09]}  Qe4+ {[%clk 0:01:58]} 45. Kd6 {[%clk 0:01:09]}  Kxf6 {[%clk 0:01:59]} 46. Kd7 {[%clk 0:01:04]}  a1=R {[%clk 0:01:55]} 0-1

[Event "January 2 Late 2024"]
[Site "https://www.chess.com"]
[Date "2024.01.02"]
[Round "3"]
[White "Ismayil, Malak"]
[Black "rumo_a_3200"]
[Result "1-0"]
[Board "152"]
[TimeControl "180+1"]
[WhiteFideId "13412604"]
[WhiteElo "2535"]
[BlackElo "2286"]
[WhiteTeam "AZE"]
[WhiteClock "0:01:10"]
[BlackClock "0:00:00"]

1. e4 {[%clk 0:03:00]}  d6 {[%clk 0:02:51]} 2. d4 {[%clk 0:03:00]}  g6 {[%clk 0:02:49]} 3. Nc3 {[%clk 0:02:59]}  Bg7 {[%clk 0:02:49]} 4. Be3 {[%clk 0:02:59]}  a6 {[%clk 0:02:48]} 5. Qd2 {[%clk 0:02:59]}  Nf6 {[%clk 0:02:47]} 6. f3 {[%clk 0:02:59]}  b5 {[%clk 0:02:36]} 7. a3 {[%clk 0:02:56]}  Nbd7 {[%clk 0:02:32]} 8. h4 {[%clk 0:02:54]}  h5 {[%clk 0:02:23]} 9. Nh3 {[%clk 0:02:45]}  Bb7 {[%clk 0:02:18]} 10. Ng5 {[%clk 0:02:44]}  c5 {[%clk 0:02:02]} 11. d5 {[%clk 0:02:31]}  Nh7 {[%clk 0:01:50]} 12. Nxh7 {[%clk 0:02:12]}  Rxh7 {[%clk 0:01:51]} 13. Be2 {[%clk 0:02:04]}  Qa5 {[%clk 0:01:24]} 14. Kf2 {[%clk 0:01:53]}  O-O-O {[%clk 0:01:07]} 15. Rhb1 {[%clk 0:01:43]}  Bxc3 {[%clk 0:00:40]} 16. bxc3 {[%clk 0:01:39]}  Nb6 {[%clk 0:00:28]} 17. a4 {[%clk 0:01:18]}  Nxa4 {[%clk 0:00:24]} 18. c4 {[%clk 0:01:16]}  Qxd2 {[%clk 0:00:13]} 19. Bxd2 {[%clk 0:01:16]}  Kc7 {[%clk 0:00:05]} 20. cxb5 {[%clk 0:01:14]}  axb5 {[%clk 0:00:00]} 21. Rxb5 {[%clk 0:01:10]} 1-0

[Event "January 2 Late 2024"]
[Site "https://www.chess.com"]
[Date "2024.01.02"]
[Round "3"]
[White "Eggleston, Thomas A"]
[Black "Rangel, Daniel"]
[Result "0-1"]
[Board "153"]
[TimeControl "180+1"]
[WhiteFideId "412139"]
[BlackFideId "2124475"]
[WhiteElo "2284"]
[BlackElo "2534"]
[WhiteTeam "ENG"]
[BlackTeam "BRA"]
[WhiteClock "0:00:00"]
[BlackClock "0:00:42"]

1. e4 {[%clk 0:03:00]}  c5 {[%clk 0:02:59]} 2. Nf3 {[%clk 0:03:00]}  g6 {[%clk 0:02:59]} 3. d4 {[%clk 0:02:59]}  cxd4 {[%clk 0:02:59]} 4. c3 {[%clk 0:03:00]}  Bg7 {[%clk 0:02:59]} 5. cxd4 {[%clk 0:02:58]}  d5 {[%clk 0:02:58]} 6. exd5 {[%clk 0:02:58]}  Nf6 {[%clk 0:02:57]} 7. Nc3 {[%clk 0:02:58]}  Nxd5 {[%clk 0:02:56]} 8. Be2 {[%clk 0:02:44]}  O-O {[%clk 0:02:54]} 9. O-O {[%clk 0:02:44]}  Nc6 {[%clk 0:02:53]} 10. h3 {[%clk 0:02:42]}  Nb6 {[%clk 0:02:49]} 11. Be3 {[%clk 0:02:41]}  Nb4 {[%clk 0:02:46]} 12. Re1 {[%clk 0:02:31]}  N4d5 {[%clk 0:02:44]} 13. Bd2 {[%clk 0:02:22]}  Bd7 {[%clk 0:02:40]} 14. Rc1 {[%clk 0:02:18]}  Bc6 {[%clk 0:02:38]} 15. Ne5 {[%clk 0:02:13]}  e6 {[%clk 0:02:33]} 16. Bf3 {[%clk 0:01:39]}  Nxc3 {[%clk 0:02:28]} 17. bxc3 {[%clk 0:01:35]}  Bxf3 {[%clk 0:02:29]} 18. Qxf3 {[%clk 0:01:34]}  Qc7 {[%clk 0:02:25]} 19. c4 {[%clk 0:01:24]}  Rad8 {[%clk 0:02:15]} 20. Bb4 {[%clk 0:01:11]}  Rfe8 {[%clk 0:02:09]} 21. Re4 {[%clk 0:00:47]}  f6 {[%clk 0:01:27]} 22. Nd3 {[%clk 0:00:27]}  Nxc4 {[%clk 0:01:26]} 23. d5 {[%clk 0:00:22]}  b5 {[%clk 0:01:05]} 24. dxe6 {[%clk 0:00:18]}  Qc6 {[%clk 0:01:03]} 25. e7 {[%clk 0:00:13]}  Rc8 {[%clk 0:00:56]} 26. Nf4 {[%clk 0:00:10]}  f5 {[%clk 0:00:50]} 27. Re6 {[%clk 0:00:08]}  Qxf3 {[%clk 0:00:50]} 28. gxf3 {[%clk 0:00:08]}  Bh6 {[%clk 0:00:48]} 29. Bd6 {[%clk 0:00:03]}  Nxd6 {[%clk 0:00:45]} 30. Rxc8 {[%clk 0:00:02]}  Nxc8 {[%clk 0:00:46]} 31. Nd5 {[%clk 0:00:02]}  Kf7 {[%clk 0:00:43]} 32. Ra6 {[%clk 0:00:00]}  Nxe7 {[%clk 0:00:42]} 0-1